[Event "26th Womens ECCC 2022"]
[Site "Mayrhofen"]
[Date "2022.10.05"]
[Round "3.3"]
[White "Osmak, Yuliia"]
[Black "Cramling, Pia"]
[Result "1/2-1/2"]
[ECO "E55"]
[WhiteElo "2428"]
[BlackElo "2459"]
[Annotator "TA"]
[PlyCount "83"]
[EventDate "2022.10.03"]
[EventType "team-tourn"]
[EventCountry "AUT"]
[SourceTitle "playchess.com"]
[Source "ChessBase"]
[SourceQuality "1"]
[TimeControl "40/5400+30:1800+30"]

{[%evp 22,83,-7,-9,-9,-13,-21,-19,-8,-13,18,14,71,22,62,26,35,40,92,102,91,110,93,85,162,102,113,118,107,120,119,103,115,65,64,77,79,74,71,0,38,42,68,43,46,27,28,35,36,28,26,30,45,28,52,33,37,37,29,31,56,52,55,0]} 1. d4 {[%emt 0:00:04]} Nf6 {[%emt 0:00:11]} 2. c4 {[%emt 0:00:04]} e6 {[%emt 0:00:06]} 3. Nc3 {[%emt 0:00:03]} Bb4 {[%emt 0:00:09]} 4. e3 {[%emt 0:00:04]} O-O {[%emt 0:00:36]} 5. Bd3 {[%emt 0:00:21]} d5 {[%emt 0:01:06]} 6. Nf3 {[%emt 0:00:10]} c5 {[%emt 0:02:32]} 7. O-O {[%emt 0:00:14]} dxc4 {[%emt 0:02:00]} 8. Bxc4 {[%emt 0:00:04]} Nbd7 {[%emt 0:01:21]} 9. Qe2 {[%emt 0:08:14]} a6 {[%emt 0:02:56]} 10. a3 {[%emt 0:15:33]} Ba5 {[%emt 0:00:58]} 11. Rd1 {[%emt 0:01:39]} b5 {[%emt 0:09:27]} 12. Ba2 {[%emt 0:02:27]} Bb7 {[%emt 0:01:48] E55: Nimzo-Indian: Rubinstein: Main Line: 7...dxc4 8 Bxc4 Nbd7.} 13. dxc5 {[%emt 0:05:51]} Bxc3 {[%emt 0:07:06]} 14. bxc3 {[%emt 0:00:08]} Qc7 {[%emt 0:07:42] The position is equal.} 15. c4 {[%emt 0:04:28]} bxc4 {[%emt 0:05:15] [#]} 16. Bb2 $146 {[%emt 0:06:45]} ({Predecessor:} 16. Bxc4 Ng4 17. h3 Bxf3 18. Qxf3 Qh2+ 19. Kf1 Nde5 20. Qf4 Qxf4 21. exf4 Nxc4 22. hxg4 {½-½ (41) Kozma,J-Hybl,J Prague 1963}) 16... Ng4 {[%emt 0:13:07] [#]} (16... Qxc5 $11 {keeps the balance.} 17. Bxc4 Bxf3 18. gxf3 Ne5 19. Bxa6 Nxf3+ 20. Qxf3 Qg5+ 21. Kh1 Rxa6) 17. c6 {[%emt 0:06:00]} ({But not} 17. Bxc4 Bxf3 18. Qxf3 Qxh2+ 19. Kf1 Rab8 $15) (17. h3 $1 $16 {[%cal Rh3g4]} Bxf3 18. Qxf3 Qh2+ 19. Kf1) 17... Qxc6 {[%emt 0:04:09][%cal Og4e5]} 18. Qxc4 {[%emt 0:00:44]} Qxc4 {[%emt 0:00:26]} 19. Bxc4 {[%emt 0:00:04]} Nb6 {[%emt 0:00:13]} ({Black should play} 19... Ngf6 $14) 20. Be2 $16 {[%emt 0:01:19]} Bd5 {[%emt 0:00:32]} 21. Rac1 {[%emt 0:04:29] Inhibits Bc4.} a5 {[%emt 0:04:24]} 22. Bd4 {[%emt 0:05:05] This bishop pair is nice.} Rab8 {[%emt 0:02:26]} (22... Nd7 $16) 23. Rc5 {[%emt 0:06:51]} (23. Bc5 $18) 23... a4 {[%emt 0:02:50]} 24. e4 {[%emt 0:05:00]} Bb3 {[%emt 0:01:45]} 25. Rdc1 {[%emt 0:03:13] [#] Strongly threatening Rg5.} Nf6 {[%emt 0:03:46]} 26. Rc6 {[%emt 0:06:03]} Nbd7 {[%emt 0:00:23]} 27. Rc7 {[%emt 0:00:38]} (27. Nd2 $16) 27... Rfd8 $1 $14 {[%emt 0:05:13]} 28. Ba7 {[%emt 0:02:49] White has more active pieces.} Ra8 {[%emt 0:00:12]} 29. Bb5 {[%emt 0:00:18] Black must now prevent e5.} e5 {[%emt 0:01:06]} 30. g4 {[%emt 0:06:30]} (30. h3 $16) 30... h6 {[%emt 0:03:30]} 31. h3 {[%emt 0:04:47]} Be6 {[%emt 0:04:34]} 32. Bc6 {[%emt 0:01:15]} ({Reject} 32. Bxa4 Ne8 $11) 32... Rac8 {[%emt 0:02:40]} 33. Bxa4 {[%emt 0:00:23]} Rxc7 {[%emt 0:00:23]} 34. Rxc7 {[%emt 0:00:02]} Nxe4 {[%emt 0:03:15]} 35. Bc6 {[%emt 0:05:08]} Ndf6 {[%emt 0:05:07]} 36. Nxe5 {[%emt 0:00:54]} Rd1+ {[%emt 0:00:17]} 37. Kh2 {[%emt 0:00:40]} (37. Kg2 {looks sharper.} Nd5 38. Rb7 g5 39. Nf3) 37... Rd2 {[%emt 0:01:48]} 38. Be3 {[%emt 0:00:36]} Ra2 {[%emt 0:00:23]} 39. Nd3 {[%emt 0:00:29]} Rxa3 {[%emt 0:01:26]} 40. Nf4 {[%emt 0:00:15]} Ba2 {[%emt 0:01:15]} 41. Rc8+ {[%emt 0:02:25]} Kh7 {[%emt 0:04:21]} 42. Ra8 {[%emt 0:00:03] Weighted Error Value: White=0.14 (very precise) /Black=0.17 (very precise)} ({Better is} 42. Bd4 $14) 1/2-1/2

[Event "26th Womens ECCC 2022"]
[Site "Mayrhofen"]
[Date "2022.10.05"]
[Round "3.4"]
[White "Paehtz, Elisabeth"]
[Black "Maltsevskaya, Aleksandra"]
[Result "0-1"]
[ECO "D02"]
[WhiteElo "2469"]
[BlackElo "2389"]
[Annotator "TA"]
[PlyCount "70"]
[EventDate "2022.10.03"]
[EventType "team-tourn"]
[EventCountry "AUT"]
[SourceTitle "playchess.com"]
[Source "ChessBase"]
[SourceQuality "1"]
[TimeControl "40/5400+30:1800+30"]

{[%evp 16,70,-12,-35,-28,-41,-40,-46,-71,-78,-84,-63,-86,-76,-55,-121,-125,-127,-123,-123,-83,-94,-97,-166,-155,-300,-259,-252,-181,-458,-471,-458,-477,-463,-458,-431,-417,-399,-339,-1132,-1126,-1094,-1066,-5403,-5407,-5110,-5098,-2511,-1948,-29986,-29986,-29986,-29986,-29996,-29997,-29997,-29998]} 1. d4 {[%emt 0:00:03]} d5 {[%emt 0:00:06]} 2. Nf3 {[%emt 0:00:04]} c5 {[%emt 0:00:07]} 3. c3 {[%emt 0:00:34]} e6 {[%emt 0:03:53]} 4. g3 {[%emt 0:05:30]} Nc6 {[%emt 0:00:58]} 5. Bg2 {[%emt 0:00:38]} Bd6 {[%emt 0:02:20]} 6. O-O {[%emt 0:00:37]} Nf6 {[%emt 0:01:47]} 7. a3 {[%emt 0:10:48]} O-O {[%emt 0:01:42]} 8. dxc5 {[%emt 0:07:12]} Bxc5 {[%emt 0:00:06]} 9. c4 {[%emt 0:00:23]} dxc4 {[%emt 0:00:55] D02: 1 d4 d5 2 Nf3 sidelines, including 2...Nf6 3 g3 and 2...Nf6 3 Bf4.} 10. Nbd2 {[%emt 0:09:15] [#]} Na5 $146 {[%emt 0:16:33][%cal Bc6a5,Ba5b3,Bb3d4][%mdl 32]} ({Predecessor:} 10... c3 11. bxc3 e5 12. Qc2 Qe7 13. Ng5 h6 14. Nge4 Bf5 15. Nxf6+ Qxf6 16. Ne4 Qg6 17. Qa4 Bb6 {0-1 (36) Matejic,Z (2173)-Poleksic,M (2206) Belgrade 2013}) 11. Qc2 {[%emt 0:22:06] [#] aiming for b4.} Qc7 {[%emt 0:00:24] Black is slightly better.} 12. Ng5 {[%emt 0:04:24]} h6 {[%emt 0:14:04]} 13. Nge4 {[%emt 0:00:03]} Nxe4 {[%emt 0:00:22]} 14. Nxe4 {[%emt 0:00:04]} Be7 {[%emt 0:00:23]} 15. b4 {[%emt 0:03:38]} ({White should try} 15. Nd2 $15) 15... Nb3 $17 {[%emt 0:02:33]} 16. Rb1 {[%emt 0:00:02]} Nd4 {[%emt 0:03:00]} 17. Qa2 {[%emt 0:00:05]} e5 {[%emt 0:07:11][%cal Be6e5,Be5e4][%mdl 32]} 18. Nc3 {[%emt 0:07:55]} Bf5 {[%emt 0:06:18]} 19. Rb2 {[%emt 0:00:56]} (19. e3 $17 {was necessary.} Nb3 20. Rb2) 19... Rfd8 $19 {[%emt 0:02:20]} 20. f4 {[%emt 0:04:21]} (20. Rd2 $17) 20... e4 {[%emt 0:04:08]} 21. Be3 {[%emt 0:01:28]} Bf6 {[%emt 0:00:36]} 22. g4 $2 {[%emt 0:08:34]} (22. Rd2 {was worth a try.}) 22... Bxg4 {[%emt 0:08:43] Strongly threatening ...Nf5.} 23. Nxe4 {[%emt 0:00:05]} c3 {[%emt 0:00:17]} 24. Nxf6+ {[%emt 0:00:33]} gxf6 {[%emt 0:00:05]} 25. Bxd4 {[%emt 0:00:09]} Rxd4 {[%emt 0:00:51][%cal Bd8d4,Bd4f4,Bf4h4,Bh4g4][%mdl 32]} 26. Rc2 {[%emt 0:01:12]} Rxf4 {[%emt 0:02:01]} 27. Rfc1 $2 {[%emt 0:00:41]} (27. Qd5 Rxf1+ 28. Bxf1) 27... Be6 {[%emt 0:06:16]} 28. Qa1 {[%emt 0:01:11]} Rh4 {[%emt 0:00:06]} 29. Rxc3 {[%emt 0:05:21]} Qxh2+ {[%emt 0:00:06]} 30. Kf2 {[%emt 0:00:02]} Rg4 {[%emt 0:01:59]} 31. Rg1 {[%emt 0:00:08]} Bd5 {[%emt 0:00:17][%cal Rd5g2]} 32. Rf3 {[%emt 0:03:00]} Bxf3 {[%emt 0:00:07] Black mates.} 33. exf3 {[%emt 0:00:03] [#]} Rd8 $1 {[%emt 0:01:04]} 34. fxg4 {[%emt 0:03:22]} (34. Qxf6 Rd2+) 34... Qf4+ {[%emt 0:00:06]} 35. Ke1 {[%emt 0:00:07]} Rd2 {[%emt 0:00:13] Weighted Error Value: White=0.80/Black=0.10 (very precise)} 0-1

[Event "26th Womens ECCC 2022"]
[Site "Mayrhofen"]
[Date "2022.10.05"]
[Round "3.5"]
[White "Bulmaga, Irina"]
[Black "Mammadzada, Gunay"]
[Result "1/2-1/2"]
[ECO "B90"]
[WhiteElo "2417"]
[BlackElo "2483"]
[Annotator "TA"]
[PlyCount "85"]
[EventDate "2022.10.03"]
[EventType "team-tourn"]
[EventCountry "AUT"]
[SourceTitle "playchess.com"]
[Source "ChessBase"]
[SourceQuality "1"]
[TimeControl "40/5400+30:1800+30"]

{[%evp 18,85,29,27,33,21,23,25,25,18,43,25,70,77,74,62,62,32,38,41,49,0,0,0,0,0,0,0,0,0,0,0,0,0,89,87,88,87,88,88,82,81,81,95,100,108,82,87,88,84,93,35,41,12,12,16,33,33,44,42,32,0,12,0,37,0,23,0,36,0]} 1. e4 {[%emt 0:00:05]} c5 {[%emt 0:00:04]} 2. Nf3 {[%emt 0:00:06]} d6 {[%emt 0:00:07]} 3. d4 {[%emt 0:00:08]} cxd4 {[%emt 0:00:06]} 4. Nxd4 {[%emt 0:00:07]} Nf6 {[%emt 0:00:04]} 5. Nc3 {[%emt 0:00:09]} a6 {[%emt 0:00:04]} 6. Be3 {[%emt 0:00:13]} e5 {[%emt 0:00:15]} 7. Nb3 {[%emt 0:00:12]} Be7 {[%emt 0:00:27]} 8. f3 {[%emt 0:00:43]} Be6 {[%emt 0:01:15]} 9. Qd2 {[%emt 0:00:22]} h5 {[%emt 0:01:03]} 10. Be2 {[%emt 0:01:00]} O-O {[%emt 0:07:37] B90: Sicilian Najdorf: Unusual White 6th moves, 6 Be3 Ng4 and 6 Be3 e5.} 11. Nd5 {[%emt 0:00:33]} Nxd5 {[%emt 0:03:27]} 12. exd5 {[%emt 0:00:16]} Bf5 {[%emt 0:00:13] White has an edge.} 13. O-O {[%emt 0:00:24]} a5 {[%emt 0:10:42]} 14. f4 {[%emt 0:09:34] [#]} Bg4 $146 {[%emt 0:23:13]} ({Predecessor:} 14... a4 15. fxe5 axb3 16. Rxf5 Rxa2 17. Raf1 g6 18. R5f2 Rxb2 19. e6 f5 20. Bd4 Bf6 21. Bxb2 Bxb2 22. cxb3 {1-0 (28) Sarana,A (2643)-Solon,N (2306) Chess.com INT 2021}) 15. Bxg4 {[%emt 0:07:04]} hxg4 {[%emt 0:00:05]} 16. fxe5 {[%emt 0:03:22]} dxe5 {[%emt 0:03:24]} 17. Rad1 {[%emt 0:15:59] Threatens to win with d6.} Bd6 {[%emt 0:01:22]} 18. Nc5 {[%emt 0:04:22]} Qe7 {[%emt 0:06:22]} 19. Ne4 {[%emt 0:10:30]} (19. Qf2 $1 $14) 19... f5 $11 {[%emt 0:03:11]} 20. Bg5 {[%emt 0:04:31]} Qd7 {[%emt 0:01:51]} 21. Nxd6 {[%emt 0:08:13]} Qxd6 {[%emt 0:00:29]} 22. Qd3 $36 {[%emt 0:01:35][%mdl 2048] Black is under pressure.} g6 {[%emt 0:02:59]} 23. h3 {[%emt 0:10:12]} gxh3 {[%emt 0:03:20]} 24. g4 {[%emt 0:02:49][%cal Rg4f5]} f4 {[%emt 0:05:46]} (24... fxg4 $2 25. Rxf8+ Kxf8 26. Rf1+ Kg7 27. Rf6 Qxf6 28. Bxf6+ Kxf6 29. Qe4 $18) 25. Rd2 {[%emt 0:08:36] Active counter play!} Kg7 {[%emt 0:07:13]} (25... Rf7 $11 {remains equal.}) 26. Qxh3 $16 {[%emt 0:08:56] [#] White threatens Rh2 and mate. Really sharp!} Rh8 {[%emt 0:00:09]} 27. Qc3 {[%emt 0:00:34]} Nd7 {[%emt 0:06:44] aiming for ...Rac8.} 28. Rxf4 $1 {[%emt 0:00:09]} Rhc8 {[%emt 0:08:22]} 29. Rc4 {[%emt 0:00:30]} ({Don't go for} 29. Qh3 $2 exf4 30. Qh6+ Kg8 31. Bxf4 Qf6 $19) 29... Rxc4 {[%emt 0:00:34]} 30. Qxc4 {[%emt 0:00:02]} Qb4 {[%emt 0:00:06] [#]} 31. Qxb4 {[%emt 0:01:59]} axb4 {[%emt 0:00:02][%mdl 4096] Endgame KRB-KRN} 32. Be7 {[%emt 0:00:56]} Rxa2 {[%emt 0:00:39]} 33. b3 {[%emt 0:00:21]} ({Of course not} 33. Bxb4 $6 Rxb2 34. Ba3 Ra2 $11) 33... Ra1+ {[%emt 0:00:20]} 34. Kg2 {[%emt 0:00:45]} (34. Kf2 $16) 34... Re1 $1 $14 {[%emt 0:00:09]} 35. Kf3 {[%emt 0:01:58]} Rf1+ {[%emt 0:01:14]} 36. Kg3 {[%emt 0:00:41]} Rf4 {[%emt 0:00:59]} 37. Bg5 {[%emt 0:00:06]} Re4 {[%emt 0:03:31]} 38. Kf3 {[%emt 0:00:21]} Re1 {[%emt 0:00:01]} 39. Be7 {[%emt 0:00:47]} Rf1+ {[%emt 0:00:15]} 40. Kg3 {[%emt 0:00:35]} Rf4 {[%emt 0:00:31]} 41. Bg5 {[%emt 0:03:44]} Re4 {[%emt 0:01:37]} 42. Kf3 {[%emt 0:02:16]} Re1 {[%emt 0:00:14]} 43. Be7 {[%emt 0:02:18] Weighted Error Value: White=0.08 (flawless) /Black=0.07 (flawless)} 1/2-1/2

[Event "26th Womens ECCC 2022"]
[Site "Mayrhofen"]
[Date "2022.10.05"]
[Round "3.6"]
[White "Fataliyeva, Ulviyya"]
[Black "Saduakassova, Dinara"]
[Result "1/2-1/2"]
[ECO "D37"]
[WhiteElo "2422"]
[BlackElo "2434"]
[Annotator "TA"]
[PlyCount "79"]
[EventDate "2022.10.03"]
[EventType "team-tourn"]
[EventCountry "AUT"]
[SourceTitle "playchess.com"]
[Source "ChessBase"]
[SourceQuality "1"]
[TimeControl "40/5400+30:1800+30"]

{[%evp 9,79,32,29,27,29,10,8,11,14,4,18,15,65,0,0,-2,10,0,34,31,73,37,56,35,35,36,89,89,96,89,122,98,101,30,52,26,31,0,0,12,19,11,19,0,62,31,40,22,31,26,31,12,14,0,0,0,43,0,0,0,0,-61,8,0,0,0,8,0,4,0,17,0]} 1. d4 {[%emt 0:00:02]} Nf6 {[%emt 0:00:25]} 2. c4 {[%emt 0:00:05]} e6 {[%emt 0:00:03]} 3. Nf3 {[%emt 0:00:04]} d5 {[%emt 0:00:38]} 4. Nc3 {[%emt 0:00:06]} a6 {[%emt 0:00:06]} 5. cxd5 {[%emt 0:00:12]} exd5 {[%emt 0:00:06]} 6. Bg5 {[%emt 0:00:05] D37: Queen's Gambit Declined: 5 Bf4.} Be6 {[%emt 0:01:10]} 7. Bxf6 {[%emt 0:00:25]} Qxf6 {[%emt 0:00:26]} 8. Qb3 {[%emt 0:00:06][%csl LRb7,LRd5]} Ra7 {[%emt 0:02:57]} 9. g3 {[%emt 0:00:07]} (9. Nxd5 Qd8 10. e4 c6) 9... Qd8 {[%emt 0:12:27] 9...Bd6 might become the main line.} 10. h4 {[%emt 0:00:05]} Be7 {[%emt 0:03:59] Prevents Ng5.} (10... c6 $11) 11. Bh3 {[%emt 0:00:39]} (11. Ng5 $1 $14) 11... Bxh3 $11 {[%emt 0:03:59]} 12. Rxh3 {[%emt 0:00:04]} c6 {[%emt 0:00:12]} 13. e4 {[%emt 0:10:53] [#]} b5 $146 {[%emt 0:05:26]} ({Predecessor:} 13... dxe4 14. Ne5 O-O 15. O-O-O Nd7 16. Nxe4 Qc8 17. Rhh1 Ra8 18. f4 Nf6 19. Nc3 b5 {0-1 (45) Niemann,H (2465)-Lenderman,A (2634) Chesterfield 2020}) 14. exd5 {[%emt 0:05:16]} b4 {[%emt 0:17:21]} 15. Ne2 {[%emt 0:04:07][%cal Bc3e2,Be2f4,Bf4d5,Bd5e3][%mdl 32]} cxd5 {[%emt 0:02:55]} 16. Nf4 {[%emt 0:03:59]} O-O {[%emt 0:01:32]} 17. Kf1 {[%emt 0:06:31]} Bd6 {[%emt 0:08:38]} (17... Nd7 $14) 18. Nxd5 $16 {[%emt 0:03:04]} Rd7 {[%emt 0:03:08][%cal Od6g3] [#]} 19. Ne3 $1 {[%emt 0:02:05] White is more active. Pair of Knights!} ({Don't go for} 19. Nxb4 $2 Rb7 20. a3 a5 $19) 19... Nc6 {[%emt 0:00:32]} 20. Ng5 {[%emt 0:10:21]} g6 {[%emt 0:04:41]} 21. Qd5 {[%emt 0:15:37]} ({White should play} 21. Rd1 $16) 21... Ne7 $11 {[%emt 0:03:43]} 22. Qf3 {[%emt 0:01:34]} h6 $1 {[%emt 0:05:00]} 23. Ne4 {[%emt 0:15:46] [#] Hoping for Nf6+.} (23. Re1 {seems wilder.} Kg7 24. Ne4 f5 25. Nxd6 Rxd6 26. Qb7) 23... f5 {[%emt 0:00:36]} 24. Nc5 {[%emt 0:00:14]} Bxc5 {[%emt 0:02:42]} 25. dxc5 {[%emt 0:00:04]} Qc7 {[%emt 0:06:07]} 26. Rc1 {[%emt 0:00:58]} Qe5 {[%emt 0:05:51]} (26... Rd2 $11) 27. c6 {[%emt 0:07:34]} (27. Qf4 $5 {[%cal Rf4e5]} Qxb2 28. Rc2 $16) 27... Rc7 {[%emt 0:02:11]} 28. Qf4 {[%emt 0:01:12]} Qxf4 {[%emt 0:00:24]} 29. gxf4 {[%emt 0:00:03]} Rxc6 {[%emt 0:02:53]} 30. Rxc6 {[%emt 0:00:56]} Nxc6 {[%emt 0:00:04][%mdl 4096] Endgame KRN-KRN} 31. Rg3 {[%emt 0:04:42]} Kg7 {[%emt 0:01:22]} 32. Nc4 {[%emt 0:02:35]} h5 {[%emt 0:01:26]} 33. Re3 {[%emt 0:03:23]} Kf6 {[%emt 0:02:27]} 34. Ne5 {[%emt 0:00:13]} Rc8 {[%emt 0:00:53]} 35. Ke1 {[%emt 0:04:02]} (35. Nd7+ $11 Kf7 36. Rd3) 35... Nd4 {[%emt 0:01:01]} (35... Nxe5 $15 36. fxe5+ Kf7) 36. Nd7+ {[%emt 0:00:41] The position is equal.} Kf7 {[%emt 0:00:09] aiming for ...Nc2+.} 37. Ne5+ {[%emt 0:00:04]} Kf6 {[%emt 0:00:03] Strongly threatening ...Nc2+.} 38. Nd7+ {[%emt 0:00:57]} Kf7 {[%emt 0:00:03] And now ...Nc2+ would win.} 39. Ne5+ {[%emt 0:00:33]} Kf6 {[%emt 0:00:48] White must now prevent ...Nc2+.} 40. Nd7+ {[%emt 0:00:32] Weighted Error Value: White=0.20 (precise) /Black=0.16 (very precise)} 1/2-1/2

[Event "26th Womens ECCC 2022"]
[Site "Mayrhofen"]
[Date "2022.10.05"]
[Round "3.7"]
[White "Atalik, Ekaterina"]
[Black "Mammadova, Gulnar"]
[Result "1/2-1/2"]
[ECO "A25"]
[WhiteElo "2406"]
[BlackElo "2389"]
[Annotator "TA"]
[PlyCount "79"]
[EventDate "2022.10.03"]
[EventType "team-tourn"]
[EventCountry "AUT"]
[SourceTitle "playchess.com"]
[Source "ChessBase"]
[SourceQuality "1"]
[TimeControl "40/5400+30:1800+30"]

{[%evp 16,79,20,21,17,13,19,20,0,0,14,0,25,13,8,10,9,25,22,16,14,-1,9,10,31,10,17,26,44,0,0,0,8,0,0,0,0,-12,16,3,17,-1,-1,-23,0,0,0,0,0,0,0,0,40,40,40,0,0,0,0,0,0,0,0,0,0,0]} 1. c4 {[%emt 0:00:03]} e5 {[%emt 0:00:16]} 2. d3 {[%emt 0:00:19]} Nc6 {[%emt 0:01:37]} 3. Nc3 {[%emt 0:00:20]} g6 {[%emt 0:00:52]} 4. g3 {[%emt 0:00:18]} Bg7 {[%emt 0:00:12]} 5. Bg2 {[%emt 0:00:14]} Nge7 {[%emt 0:00:31]} 6. Nf3 {[%emt 0:00:22]} d6 {[%emt 0:01:24]} 7. O-O {[%emt 0:01:26]} O-O {[%emt 0:01:25]} 8. Rb1 {[%emt 0:00:47]} f5 {[%emt 0:05:19]} 9. Bd2 {[%emt 0:04:12]} h6 {[%emt 0:04:03] A26: English Opening vs King's Indian with ...Nc6 and d3.} 10. b4 {[%emt 0:00:40][%cal Bb2b4,Bb4b5][%mdl 32]} g5 {[%emt 0:02:06]} 11. b5 {[%emt 0:01:12]} Nb8 {[%emt 0:02:48][%cal Bc6b8,Bb8d7,Bd7c5][%mdl 32]} 12. Ne1 {[%emt 0:01:06][%cal Bf3e1,Be1c2,Bc2b4][%mdl 32]} Nd7 {[%emt 0:01:22]} 13. Nc2 {[%emt 0:01:21]} Nc5 {[%emt 0:06:07]} 14. Nb4 {[%emt 0:03:57]} f4 {[%emt 0:07:41] [#]} 15. Ne4 $146 {[%emt 0:06:47]} ({Predecessor:} 15. a4 h5 16. Nbd5 Nf5 17. Ne4 Nxe4 18. Bxe4 Nh6 19. Bg2 h4 20. Ba5 Rf7 21. e3 hxg3 22. fxg3 {0-1 (35) Romon Poves,R (2237)-Villalba Embid,M (2054) Aragon 2020}) 15... Nxe4 {[%emt 0:05:09]} 16. Bxe4 {[%emt 0:00:47]} Rb8 {[%emt 0:07:30]} 17. Qa4 {[%emt 0:03:51]} (17. Re1 {looks sharper.} Qe8 18. e3 fxg3 19. fxg3 Bh3 20. Nd5) 17... Bf5 {[%emt 0:06:05]} 18. f3 {[%emt 0:06:14]} (18. Bf3 {is more complex.} Qd7 19. Qxa7 Bg4 20. Nc6) 18... Bxe4 {[%emt 0:03:46]} 19. dxe4 {[%emt 0:03:44]} Ra8 {[%emt 0:04:37]} 20. g4 {[%emt 0:04:09]} Qd7 {[%emt 0:02:16]} 21. Qb3 {[%emt 0:01:19]} Kh7 {[%emt 0:00:45]} 22. Nd3 {[%emt 0:02:55]} b6 {[%emt 0:01:02]} 23. Nb4 {[%emt 0:06:20]} h5 {[%emt 0:05:12]} 24. h3 {[%emt 0:00:21]} Rh8 {[%emt 0:00:45]} 25. Kg2 {[%emt 0:03:00]} Kg6 {[%emt 0:01:22]} 26. Nd5 {[%emt 0:03:47]} Ng8 {[%emt 0:03:28]} 27. Rh1 {[%emt 0:05:49]} Nf6 {[%emt 0:00:56]} 28. Nxf6 {[%emt 0:02:32] Chess con chili.} Bxf6 {[%emt 0:00:30]} 29. Qd3 {[%emt 0:01:59]} Qc8 {[%emt 0:02:40]} 30. a4 {[%emt 0:03:29]} a5 {[%emt 0:01:30]} 31. Qd5 {[%emt 0:02:13]} Rh7 {[%emt 0:02:57]} 32. Bc3 {[%emt 0:06:31][%cal Oc4c5]} Qg8 {[%emt 0:00:54]} 33. Rbg1 {[%emt 0:01:36]} Qxd5 {[%emt 0:02:37]} 34. cxd5 {[%emt 0:00:31]} Rah8 {[%emt 0:02:42]} 35. gxh5+ {[%emt 0:04:39]} Rxh5 {[%emt 0:00:19] The position is equal.} 36. Be1 {[%emt 0:00:49]} Kf7 {[%emt 0:01:41]} 37. Bf2 {[%emt 0:00:41]} Bd8 {[%emt 0:00:25]} 38. Rh2 {[%emt 0:03:24]} R5h7 {[%emt 0:00:47]} 39. Rgh1 {[%emt 0:00:59]} Rh5 {[%emt 0:00:51]} 40. Be1 {[%emt 0:05:24] Weighted Error Value: White=0.08 (flawless) /Black=0.08 (flawless)} 1/2-1/2

[Event "26th Womens ECCC 2022"]
[Site "Mayrhofen"]
[Date "2022.10.05"]
[Round "3.8"]
[White "Balajayeva, Khanim"]
[Black "Efroimski, Marsel"]
[Result "0-1"]
[ECO "B60"]
[WhiteElo "2384"]
[BlackElo "2462"]
[Annotator "TA"]
[PlyCount "58"]
[EventDate "2022.10.03"]
[EventType "team-tourn"]
[EventCountry "AUT"]
[SourceTitle "playchess.com"]
[Source "ChessBase"]
[SourceQuality "1"]
[TimeControl "40/5400+30:1800+30"]

{[%evp 13,58,40,45,0,0,0,0,-10,-2,-17,0,0,0,0,0,0,-4,-18,-23,-34,-26,-73,-82,-93,-88,-91,-62,-186,-172,-188,-185,-185,-147,-278,-277,-285,-291,-413,-413,-428,-433,-421,-239,-490,-477,-29990,-29991]} 1. e4 {[%emt 0:00:03]} c5 {[%emt 0:00:02]} 2. Nf3 {[%emt 0:00:03][%cal Bg1f3,Bf3d4,Bd4b5,Bb5d6][%mdl 32]} d6 {[%emt 0:01:34]} 3. d4 {[%emt 0:00:08]} cxd4 {[%emt 0:00:04]} 4. Nxd4 {[%emt 0:00:02]} Nf6 {[%emt 0:00:04]} 5. Nc3 {[%emt 0:00:11]} Nc6 {[%emt 0:00:04]} 6. Bg5 {[%emt 0:00:26]} g6 {[%emt 0:00:07]} 7. Bxf6 {[%emt 0:05:45]} exf6 {[%emt 0:00:01]} 8. Be2 {[%emt 0:06:51] B60: Sicilian: Richter-Rauzer: Unusual Black 6th moves and 6...Bd7 without 7 Qd2.} Bg7 {[%emt 0:02:30][%cal Bf8g7,Bg7b2,Bb2e5][%mdl 32]} 9. Ndb5 {[%emt 0:07:11]} O-O {[%emt 0:00:05]} 10. O-O {[%emt 0:12:54] The position is equal.} f5 {[%emt 0:11:52]} 11. Nxd6 {[%emt 0:02:41]} fxe4 {[%emt 0:01:13]} 12. Ncxe4 {[%emt 0:07:46]} Bxb2 {[%emt 0:03:49] A strong pair of Bishops.} 13. Rb1 {[%emt 0:01:53]} Be5 {[%emt 0:01:14] [#]} 14. Nxc8 $146 {[%emt 0:12:20]} ({Predecessor:} 14. Bc4 Nd4 15. f4 Bxd6 16. Qxd4 Be7 17. Qxd8 Rxd8 18. Ng5 Rf8 19. Rfe1 Bd6 20. f5 gxf5 {½-½ (47) Abdulov,O (2387)-Perunovic,M (2481) Plovdiv 2012}) 14... Qxc8 {[%emt 0:07:38]} 15. f4 {[%emt 0:00:44]} Bg7 {[%emt 0:11:26]} 16. f5 {[%emt 0:05:32]} Nd4 {[%emt 0:02:19]} (16... gxf5 17. Ng3 $14 (17. Nd6 Qc7 $14)) 17. f6 {[%emt 0:06:00]} (17. fxg6 $11 hxg6 18. Bd3) 17... Nxe2+ $17 {[%emt 0:01:20]} 18. Qxe2 {[%emt 0:00:04]} Bh6 {[%emt 0:00:10]} 19. Qf2 {[%emt 0:06:41]} Qc4 {[%emt 0:17:41]} 20. Rfe1 {[%emt 0:01:38] [#] Loses the game.} (20. Nd6 $15 Qd5 21. Rbd1 (21. Nxb7 Qxa2 22. Kh1 Rfc8 $15) 21... Qxa2 22. Qh4 Be3+ 23. Kh1) 20... Rfe8 $1 $19 {[%emt 0:04:02]} 21. Qf3 {[%emt 0:11:07]} b6 {[%emt 0:02:58]} ({Weaker is} 21... Qxc2 22. Rxb7 Rad8 23. Qb3 Qxb3 24. axb3 $11) 22. Kh1 {[%emt 0:03:03] aiming for Nd6.} Bf8 {[%emt 0:02:59] Against Nd6} ({Stronger than} 22... Qxa2 23. Nd6 Rxe1+ 24. Rxe1) 23. c3 {[%emt 0:04:39]} (23. Nc3 $17) 23... Qxa2 {[%emt 0:01:43]} 24. h4 {[%emt 0:00:41]} Re5 {[%emt 0:07:52] White must now prevent ...Rae8.} 25. Ng5 {[%emt 0:01:36]} (25. Red1 $142) 25... Rae8 {[%emt 0:00:20]} 26. Red1 {[%emt 0:00:43]} h6 {[%emt 0:03:57]} 27. Nh3 {[%emt 0:00:25]} Qe2 {[%emt 0:01:24]} (27... Re3 $142 28. Qf1 Qe6) 28. Qb7 {[%emt 0:00:52]} (28. Qxe2 Rxe2 29. Rd7) 28... Qg4 {[%emt 0:01:59]} 29. Qxa7 {[%emt 0:01:24] [#]} (29. Qf3 $19 Qxh4 30. Qf4) 29... Re2 {[%emt 0:01:00] Weighted Error Value: White=0.68/Black=0.11 (very precise)} 0-1